[Event "*** Titled Tuesday 3|2 Blitz"]
[Site "Chess.com"]
[Date "2016.08.02"]
[Round "2"]
[White "viditchess"]
[Black "psv98"]
[Result "1-0"]
[WhiteElo "2512"]
[BlackElo "2596"]
[TimeControl "180+2"]
[EndTime "11:24:58 PDT"]
[Termination "viditchess won by resignation"]

1. d4 {[%clk 0:03:01.9]} 1... Nf6 {[%clk 0:03:00.4]} 2. c4 {[%clk 0:03:02.8]}
2... d6 {[%clk 0:03:00.1]} 3. Nf3 {[%clk 0:03:02.8]} 3... g6 {[%clk 0:03:00.5]}
4. g3 {[%clk 0:03:03.8]} 4... Bg7 {[%clk 0:03:01.3]} 5. Bg2 {[%clk 0:03:05.7]}
5... O-O {[%clk 0:03:02.9]} 6. O-O {[%clk 0:03:07.3]} 6... Nc6 {[%clk
0:03:04.2]} 7. Nc3 {[%clk 0:03:07.6]} 7... Bf5 {[%clk 0:03:05]} 8. d5 {[%clk
0:03:07.6]} 8... Na5 {[%clk 0:03:05.6]} 9. Nh4 {[%clk 0:03:08.2]} 9... Bd7
{[%clk 0:03:05.8]} 10. b3 {[%clk 0:02:53.7]} 10... Nxd5 {[%clk 0:02:18.5]} 11.
Nxd5 {[%clk 0:02:52.3]} 11... Bxa1 {[%clk 0:01:23]} 12. Bd2 {[%clk 0:02:35.9]}
12... c6 {[%clk 0:01:17.3]} 13. Qxa1 {[%clk 0:00:55.8]} 13... cxd5 {[%clk
0:01:17.7]} 14. Bh6 {[%clk 0:00:52.2]} 14... f6 {[%clk 0:01:18]} 15. Bxd5+
{[%clk 0:00:40.3]} 15... Kh8 {[%clk 0:01:18.4]} 16. Bxf8 {[%clk 0:00:40.8]}
16... Qxf8 {[%clk 0:01:18]} 17. Ng2 {[%clk 0:00:42.2]} 17... Nc6 {[%clk
0:01:12.1]} 18. Nf4 {[%clk 0:00:40.5]} 18... Qg7 {[%clk 0:01:10.7]} 19. Qc3
{[%clk 0:00:39.3]} 19... f5 {[%clk 0:01:11.1]} 20. Qd2 {[%clk 0:00:33.7]} 20...
Qf6 {[%clk 0:01:07.2]} 21. Rc1 {[%clk 0:00:33.7]} 21... Rd8 {[%clk 0:00:47]} 22.
Bg2 {[%clk 0:00:33.5]} 22... Be6 {[%clk 0:00:37.2]} 23. h4 {[%clk 0:00:25.8]}
23... Bf7 {[%clk 0:00:34.2]} 24. Rd1 {[%clk 0:00:26.3]} 24... Kg7 {[%clk
0:00:27.4]} 25. b4 {[%clk 0:00:24.1]} 25... Bxc4 {[%clk 0:00:21.2]} 26. Rc1
{[%clk 0:00:25]} 26... Bf7 {[%clk 0:00:20.7]} 27. b5 {[%clk 0:00:25]} 27... Nd4
{[%clk 0:00:05.9]} 28. Bxb7 {[%clk 0:00:13.6]} 28... Nxb5 {[%clk 0:00:07]} 29.
Qa5 {[%clk 0:00:14.5]} 29... Qb2 {[%clk 0:00:03.6]} 30. Rf1 {[%clk 0:00:09.5]}
30... Rb8 {[%clk 0:00:05.1]} 31. Nd3 {[%clk 0:00:09.5]} 31... Qxe2 {[%clk
0:00:03.8]} 32. Qxb5 {[%clk 0:00:10.7]} 32... Rxb7 {[%clk 0:00:03.9]} 33. Qxb7
{[%clk 0:00:11.2]} 33... Qxd3 {[%clk 0:00:05.8]} 34. Qxa7 {[%clk 0:00:11.7]}
34... Qe4 {[%clk 0:00:06.2]} 35. f3 {[%clk 0:00:09.5]} 35... Qe5 {[%clk
0:00:07.6]} 36. Kg2 {[%clk 0:00:09.1]} 36... f4 {[%clk 0:00:06.7]} 37. gxf4
{[%clk 0:00:08.4]} 37... Qf6 {[%clk 0:00:07.9]} 38. Kg3 {[%clk 0:00:08.2]} 38...
Be6 {[%clk 0:00:05.9]} 39. Re1 {[%clk 0:00:09]} 39... Kf7 {[%clk 0:00:07.1]} 40.
a4 {[%clk 0:00:09.5]} 40... Qc3 {[%clk 0:00:07.2]} 41. Qe3 {[%clk 0:00:09.8]}
41... Qc4 {[%clk 0:00:07.5]} 42. a5 {[%clk 0:00:09.4]} 42... h6 {[%clk 0:00:05]}
43. a6 {[%clk 0:00:10.3]} 43... g5 {[%clk 0:00:05.8]} 44. fxg5 {[%clk
0:00:11.5]} 44... hxg5 {[%clk 0:00:07.7]} 45. hxg5 {[%clk 0:00:12.7]} 1-0

[Event "*** Titled Tuesday 3|2 Blitz"]
[Site "Chess.com"]
[Date "2016.08.02"]
[Round "2"]
[White "FLchessplayer"]
[Black "ER404"]
[Result "0-1"]
[WhiteElo "2023"]
[BlackElo "2152"]
[TimeControl "180+2"]
[EndTime "11:25:03 PDT"]
[Termination "ER404 won by resignation"]

1. d4 {[%clk 0:03:01.9]} 1... d5 {[%clk 0:02:59.6]} 2. c4 {[%clk 0:03:02.2]}
2... e6 {[%clk 0:03:00.6]} 3. Nc3 {[%clk 0:03:03.2]} 3... c6 {[%clk 0:03:01.1]}
4. e4 {[%clk 0:03:02.9]} 4... dxe4 {[%clk 0:03:01.2]} 5. Nxe4 {[%clk 0:03:03.9]}
5... Bb4+ {[%clk 0:03:02.6]} 6. Nc3 {[%clk 0:03:04.8]} 6... Nf6 {[%clk
0:03:01.8]} 7. Nf3 {[%clk 0:03:05.7]} 7... c5 {[%clk 0:03:00.9]} 8. Be3 {[%clk
0:03:05.6]} 8... O-O {[%clk 0:02:52]} 9. h3 {[%clk 0:03:03]} 9... b6 {[%clk
0:02:43.4]} 10. Be2 {[%clk 0:03:02.6]} 10... Bb7 {[%clk 0:02:42.8]} 11. O-O
{[%clk 0:03:03]} 11... Nbd7 {[%clk 0:02:42]} 12. Rc1 {[%clk 0:02:58.1]} 12...
Rc8 {[%clk 0:02:29.9]} 13. Nb5 {[%clk 0:02:58.7]} 13... cxd4 {[%clk 0:02:19.9]}
14. Nfxd4 {[%clk 0:02:58.1]} 14... a6 {[%clk 0:02:05.6]} 15. Nc2 {[%clk
0:02:52]} 15... axb5 {[%clk 0:01:30.7]} 16. Nxb4 {[%clk 0:02:52.5]} 16... Qe7
{[%clk 0:01:14.5]} 17. a3 {[%clk 0:02:50]} 17... bxc4 {[%clk 0:01:13]} 18. Bxc4
{[%clk 0:02:43]} 18... Rfd8 {[%clk 0:01:08.1]} 19. Qe2 {[%clk 0:02:43.7]} 19...
Nc5 {[%clk 0:00:40.7]} 20. Rcd1 {[%clk 0:02:38.4]} 20... h6 {[%clk 0:00:34.2]}
21. Rxd8+ {[%clk 0:02:35.8]} 21... Rxd8 {[%clk 0:00:35.6]} 22. Rd1 {[%clk
0:02:36.7]} 22... Rxd1+ {[%clk 0:00:25.7]} 23. Qxd1 {[%clk 0:02:36.6]} 23... Qc7
{[%clk 0:00:27.6]} 24. Qe2 {[%clk 0:02:34.2]} 24... Kf8 {[%clk 0:00:24.7]} 25.
f3 {[%clk 0:02:32.9]} 25... Na4 {[%clk 0:00:23.4]} 26. Bb5 {[%clk 0:02:24.5]}
26... Nc5 {[%clk 0:00:24.1]} 27. Nd3 {[%clk 0:02:18.3]} 27... Nxd3 {[%clk
0:00:23.4]} 28. Qxd3 {[%clk 0:02:19.4]} 28... Nd5 {[%clk 0:00:24.3]} 29. Bd2
{[%clk 0:02:14.5]} 29... Qg3 {[%clk 0:00:20.2]} 30. Ba6 {[%clk 0:02:06.9]} 30...
Bxa6 {[%clk 0:00:11.1]} 31. Qxa6 {[%clk 0:02:07.2]} 31... Kg8 {[%clk 0:00:07]}
32. Qc8+ {[%clk 0:02:02.5]} 32... Kh7 {[%clk 0:00:07.9]} 33. Qc2+ {[%clk
0:02:04]} 33... g6 {[%clk 0:00:08.4]} 34. Qe4 {[%clk 0:02:03]} 34... Qc7 {[%clk
0:00:06.2]} 35. Kf1 {[%clk 0:02:02.4]} 35... Qc6 {[%clk 0:00:05.8]} 36. Qd3
{[%clk 0:02:01.5]} 36... Qc7 {[%clk 0:00:06.1]} 37. Qd4 {[%clk 0:01:55.1]} 37...
Qh2 {[%clk 0:00:05.9]} 38. Be3 {[%clk 0:01:54.8]} 38... Qc7 {[%clk 0:00:05.4]}
39. Bd2 {[%clk 0:01:54.1]} 39... Qh2 {[%clk 0:00:05.6]} 40. Bc3 {[%clk
0:01:54.7]} 40... Qh1+ {[%clk 0:00:06.6]} 41. Kf2 {[%clk 0:01:55.1]} 41... Nxc3
{[%clk 0:00:07.1]} 42. Qxc3 {[%clk 0:01:55.9]} 42... Qd1 {[%clk 0:00:08.2]} 43.
Qe3 {[%clk 0:01:54.1]} 43... Qc2+ {[%clk 0:00:09]} 44. Qe2 {[%clk 0:01:55.3]}
44... Qc5+ {[%clk 0:00:10.2]} 45. Ke1 {[%clk 0:01:54.9]} 45... Qc1+ {[%clk
0:00:10.7]} 46. Kf2 {[%clk 0:01:56.1]} 46... Qc5+ {[%clk 0:00:11.8]} 47. Kg3
{[%clk 0:01:57.3]} 47... Kg7 {[%clk 0:00:13]} 48. f4 {[%clk 0:01:58.4]} 48...
Qc1 {[%clk 0:00:12.8]} 49. Qf2 {[%clk 0:01:58.5]} 49... Qc6 {[%clk 0:00:13]} 50.
Qd4+ {[%clk 0:01:58.8]} 50... Kh7 {[%clk 0:00:13.9]} 51. Qf6 {[%clk 0:01:59.4]}
51... Kg8 {[%clk 0:00:13.7]} 52. b4 {[%clk 0:01:59.9]} 52... Qd6 {[%clk
0:00:13.4]} 53. Qc3 {[%clk 0:01:59]} 53... g5 {[%clk 0:00:13.1]} 54. Qb3 {[%clk
0:01:59.6]} 54... Kh7 {[%clk 0:00:12.7]} 55. Qf3 {[%clk 0:01:57.3]} 55... Kg6
{[%clk 0:00:13.4]} 56. Qe4+ {[%clk 0:01:55.1]} 56... Kh5 {[%clk 0:00:12.6]} 57.
Qf3+ {[%clk 0:01:55.8]} 57... Kg6 {[%clk 0:00:13.9]} 58. Qe4+ {[%clk 0:01:57]}
58... Kf6 {[%clk 0:00:14.6]} 59. Kf3 {[%clk 0:01:57.1]} 59... Qd1+ {[%clk
0:00:13.9]} 60. Kg3 {[%clk 0:01:57.2]} 60... Qd6 {[%clk 0:00:14]} 61. Kf3 {[%clk
0:01:57.5]} 61... Qd1+ {[%clk 0:00:14.8]} 62. Kg3 {[%clk 0:01:58.7]} 62... Qb3+
{[%clk 0:00:15.6]} 63. Kh2 {[%clk 0:01:58.8]} 63... Qxa3 {[%clk 0:00:14.6]} 64.
Qe5+ {[%clk 0:01:59.8]} 64... Kg6 {[%clk 0:00:15.3]} 65. fxg5 {[%clk 0:01:59.9]}
65... hxg5 {[%clk 0:00:16.3]} 66. Qe4+ {[%clk 0:02:00]} 66... Kh6 {[%clk
0:00:13.2]} 67. h4 {[%clk 0:02:00.1]} 67... Qc1 {[%clk 0:00:09.6]} 68. Qg4
{[%clk 0:01:58.5]} 68... Qf4+ {[%clk 0:00:09.8]} 69. Qxf4 {[%clk 0:01:59.5]}
69... gxf4 {[%clk 0:00:11.7]} 70. Kh3 {[%clk 0:02:00.4]} 70... f5 {[%clk
0:00:08.4]} 71. g4 {[%clk 0:01:59.7]} 71... fxg3 {[%clk 0:00:07.9]} 72. Kxg3
{[%clk 0:02:00.7]} 72... Kh5 {[%clk 0:00:09]} 73. Kh3 {[%clk 0:02:01.5]} 73...
e5 {[%clk 0:00:09.8]} 74. b5 {[%clk 0:02:02.9]} 74... f4 {[%clk 0:00:08.6]} 75.
Kg2 {[%clk 0:02:03.1]} 75... Kxh4 {[%clk 0:00:10.1]} 76. Kf2 {[%clk 0:02:04.4]}
76... Kg4 {[%clk 0:00:11.1]} 0-1

[Event "*** Titled Tuesday 3|2 Blitz"]
[Site "Chess.com"]
[Date "2016.08.02"]
[Round "2"]
[White "oggy1984"]
[Black "MFBerna"]
[Result "1/2-1/2"]
[WhiteElo "2314"]
[BlackElo "2139"]
[TimeControl "180+2"]
[EndTime "11:25:10 PDT"]
[Termination "Game drawn by repetition"]

1. e4 {[%clk 0:03:00.6]} 1... c6 {[%clk 0:03:00]} 2. d4 {[%clk 0:03:00.6]} 2...
d5 {[%clk 0:03:01.9]} 3. Nc3 {[%clk 0:03:02]} 3... dxe4 {[%clk 0:03:02]} 4. Nxe4
{[%clk 0:03:03.9]} 4... Bf5 {[%clk 0:03:03.9]} 5. Ng3 {[%clk 0:03:04.1]} 5...
Bg6 {[%clk 0:03:03.4]} 6. Nf3 {[%clk 0:03:05.5]} 6... Nd7 {[%clk 0:03:02.6]} 7.
h4 {[%clk 0:03:06.4]} 7... h6 {[%clk 0:03:02.4]} 8. h5 {[%clk 0:03:07.8]} 8...
Bh7 {[%clk 0:03:03.5]} 9. Bd3 {[%clk 0:03:09.3]} 9... Bxd3 {[%clk 0:03:04.1]}
10. Qxd3 {[%clk 0:03:11.2]} 10... e6 {[%clk 0:03:05.6]} 11. Bd2 {[%clk
0:03:12.5]} 11... Ngf6 {[%clk 0:03:06.5]} 12. O-O-O {[%clk 0:03:13.7]} 12... Bd6
{[%clk 0:02:58.9]} 13. Ne4 {[%clk 0:03:14.2]} 13... Nxe4 {[%clk 0:02:59.5]} 14.
Qxe4 {[%clk 0:03:16.1]} 14... Nf6 {[%clk 0:03:01.1]} 15. Qe2 {[%clk 0:03:17.5]}
15... Qc7 {[%clk 0:02:56.7]} 16. Kb1 {[%clk 0:03:16]} 16... O-O-O {[%clk
0:02:57.4]} 17. c4 {[%clk 0:03:05.6]} 17... Kb8 {[%clk 0:02:56.9]} 18. Bc3
{[%clk 0:03:02.1]} 18... c5 {[%clk 0:02:57]} 19. dxc5 {[%clk 0:02:53.6]} 19...
Qxc5 {[%clk 0:02:57]} 20. Rxd6 {[%clk 0:02:17.2]} 20... Rxd6 {[%clk 0:02:58.9]}
21. Be5 {[%clk 0:02:16.6]} 21... Ka8 {[%clk 0:02:57.6]} 22. Bxd6 {[%clk
0:02:12]} 22... Qxd6 {[%clk 0:02:59.5]} 23. Rd1 {[%clk 0:01:54.7]} 23... Qc5
{[%clk 0:03:00.2]} 24. Ne5 {[%clk 0:01:51.8]} 24... Qc7 {[%clk 0:02:44.7]} 25.
f4 {[%clk 0:01:45.2]} 25... a6 {[%clk 0:02:38.3]} 26. g4 {[%clk 0:01:28.3]}
26... Rc8 {[%clk 0:02:38.6]} 27. a3 {[%clk 0:01:02.9]} 27... Ne8 {[%clk
0:02:38.6]} 28. Rd4 {[%clk 0:00:59]} 28... Qb6 {[%clk 0:02:30.6]} 29. Qd2 {[%clk
0:00:42.6]} 29... f6 {[%clk 0:02:29]} 30. Nd7 {[%clk 0:00:36.5]} 30... Qc6
{[%clk 0:02:27.1]} 31. c5 {[%clk 0:00:35.6]} 31... Ka7 {[%clk 0:02:26.3]} 32.
Nb6 {[%clk 0:00:28.8]} 32... Rb8 {[%clk 0:02:22.3]} 33. b4 {[%clk 0:00:24.2]}
33... Nc7 {[%clk 0:02:21.3]} 34. Rd8 {[%clk 0:00:21.3]} 34... Nd5 {[%clk
0:02:11.1]} 35. Rxb8 {[%clk 0:00:16.8]} 35... Kxb8 {[%clk 0:02:10.9]} 36. Nxd5
{[%clk 0:00:16.6]} 36... exd5 {[%clk 0:02:12]} 37. Qe3 {[%clk 0:00:16.8]} 37...
Qa4 {[%clk 0:02:01.3]} 38. Kb2 {[%clk 0:00:17.2]} 38... Qd1 {[%clk 0:02:00]} 39.
Qe8+ {[%clk 0:00:09.7]} 39... Ka7 {[%clk 0:02:01.2]} 40. Qd8 {[%clk 0:00:10.5]}
40... Qd2+ {[%clk 0:01:52]} 41. Kb3 {[%clk 0:00:11.6]} 41... Qd3+ {[%clk
0:01:46.8]} 42. Kb2 {[%clk 0:00:11.9]} 42... Qd2+ {[%clk 0:01:46.5]} 43. Kb3
{[%clk 0:00:13.2]} 43... Qxf4 {[%clk 0:01:47.6]} 44. Qb6+ {[%clk 0:00:13.8]}
44... Ka8 {[%clk 0:01:49.1]} 45. Qd8+ {[%clk 0:00:14.5]} 45... Qb8 {[%clk
0:01:49.2]} 46. Qxd5 {[%clk 0:00:15.1]} 46... Qc8 {[%clk 0:01:48.4]} 47. Qf5
{[%clk 0:00:14.5]} 47... Qg8+ {[%clk 0:01:45.3]} 48. Ka4 {[%clk 0:00:12.5]}
48... Qe8+ {[%clk 0:01:39.2]} 49. Kb3 {[%clk 0:00:12.9]} 49... Qe3+ {[%clk
0:01:37.9]} 50. Kb2 {[%clk 0:00:13.8]} 50... Qe2+ {[%clk 0:01:35.1]} 51. Kb3
{[%clk 0:00:14.3]} 51... Ka7 {[%clk 0:01:33.6]} 52. Qd7 {[%clk 0:00:14.1]} 52...
Qf3+ {[%clk 0:01:28.7]} 53. Kb2 {[%clk 0:00:10.7]} 53... Qe2+ {[%clk 0:01:26.4]}
54. Kb3 {[%clk 0:00:11.4]} 54... Qe3+ {[%clk 0:01:27.3]} 55. Kb2 {[%clk
0:00:12.1]} 55... Qe5+ {[%clk 0:01:21.6]} 56. Kb3 {[%clk 0:00:12.8]} 56... Qe3+
{[%clk 0:01:16]} 57. Kb2 {[%clk 0:00:12.5]} 57... Qe5+ {[%clk 0:00:55.2]} 58.
Kb3 {[%clk 0:00:08.9]} 58... Qe3+ {[%clk 0:00:55.7]} 59. Kb2 {[%clk 0:00:07.8]}
59... Qe5+ {[%clk 0:00:55]} 1/2-1/2

[Event "*** Titled Tuesday 3|2 Blitz"]
[Site "Chess.com"]
[Date "2016.08.02"]
[Round "2"]
[White "Generalas"]
[Black "AdamHunt1"]
[Result "0-1"]
[WhiteElo "2247"]
[BlackElo "2371"]
[TimeControl "180+2"]
[EndTime "11:25:20 PDT"]
[Termination "AdamHunt1 won by resignation"]

1. e4 {[%clk 0:03:01.9]} 1... c5 {[%clk 0:03:01]} 2. c3 {[%clk 0:03:02.3]} 2...
Nf6 {[%clk 0:03:01]} 3. e5 {[%clk 0:03:03.3]} 3... Nd5 {[%clk 0:03:02]} 4. d4
{[%clk 0:03:04.7]} 4... e6 {[%clk 0:03:03.1]} 5. Nf3 {[%clk 0:03:03.2]} 5...
cxd4 {[%clk 0:03:04.4]} 6. cxd4 {[%clk 0:03:03.3]} 6... d6 {[%clk 0:03:05.9]} 7.
Bc4 {[%clk 0:03:01]} 7... Nc6 {[%clk 0:03:07.1]} 8. O-O {[%clk 0:03:00.7]} 8...
Be7 {[%clk 0:03:08.6]} 9. Qe2 {[%clk 0:03:00.8]} 9... O-O {[%clk 0:03:08.7]} 10.
Qe4 {[%clk 0:02:59.8]} 10... Bd7 {[%clk 0:03:09.1]} 11. Re1 {[%clk 0:02:52.6]}
11... Rc8 {[%clk 0:03:07.6]} 12. Bd3 {[%clk 0:02:43.1]} 12... f5 {[%clk
0:03:06.1]} 13. exf6 {[%clk 0:02:42.9]} 13... Nxf6 {[%clk 0:03:07.2]} 14. Qe2
{[%clk 0:02:43]} 14... Nb4 {[%clk 0:03:07.4]} 15. Bc4 {[%clk 0:02:40.9]} 15...
d5 {[%clk 0:03:01.2]} 16. Bb3 {[%clk 0:02:40.6]} 16... Ne4 {[%clk 0:02:57.2]}
17. Be3 {[%clk 0:02:31.8]} 17... Qb6 {[%clk 0:02:52.3]} 18. Na3 {[%clk
0:02:18.4]} 18... Bd6 {[%clk 0:02:28.1]} 19. Ne5 {[%clk 0:02:14.7]} 19... Bxe5
{[%clk 0:02:25.6]} 20. dxe5 {[%clk 0:02:15.1]} 20... d4 {[%clk 0:02:27.1]} 21.
Bxd4 {[%clk 0:01:48]} 21... Qxd4 {[%clk 0:02:26.3]} 22. Rad1 {[%clk 0:01:39.1]}
22... Qb6 {[%clk 0:01:59.2]} 23. Rxd7 {[%clk 0:01:30.3]} 23... Nxf2 {[%clk
0:01:58.2]} 24. Nc4 {[%clk 0:01:00.8]} 24... Rxc4 {[%clk 0:01:54.3]} 25. Bxc4
{[%clk 0:01:01.4]} 25... Nbd3 {[%clk 0:01:31.8]} 26. Bxd3 {[%clk 0:00:22.6]}
26... Nxd3+ {[%clk 0:01:32.1]} 27. Kh1 {[%clk 0:00:20.3]} 27... Nxe1 {[%clk
0:01:14.4]} 28. Qxe1 {[%clk 0:00:21.2]} 28... Qxb2 {[%clk 0:01:08.3]} 29. h3
{[%clk 0:00:21.3]} 29... Qb5 {[%clk 0:01:02.4]} 30. Qd2 {[%clk 0:00:14]} 30...
Qc5 {[%clk 0:00:54.1]} 31. Qe1 {[%clk 0:00:08.5]} 31... Qb5 {[%clk 0:00:52.2]}
32. Rd1 {[%clk 0:00:09.2]} 32... h6 {[%clk 0:00:46.3]} 33. Kh2 {[%clk
0:00:09.7]} 33... Rf5 {[%clk 0:00:46.1]} 34. Rd8+ {[%clk 0:00:09]} 34... Kh7
{[%clk 0:00:47.4]} 35. Qg3 {[%clk 0:00:09.7]} 35... Rxe5 {[%clk 0:00:42.5]} 36.
Rc8 {[%clk 0:00:10]} 36... Rg5 {[%clk 0:00:41]} 37. Qb8 {[%clk 0:00:09.7]} 37...
Qe5+ {[%clk 0:00:39.1]} 38. g3 {[%clk 0:00:08.5]} 38... Qxb8 {[%clk 0:00:34.9]}
39. Rxb8 {[%clk 0:00:10.4]} 39... Rb5 {[%clk 0:00:35.8]} 40. Kg2 {[%clk
0:00:10.8]} 40... b6 {[%clk 0:00:35.2]} 41. Kf3 {[%clk 0:00:12]} 41... Rb2
{[%clk 0:00:34.4]} 42. a4 {[%clk 0:00:10.8]} 42... Rb3+ {[%clk 0:00:35.8]} 43.
Ke4 {[%clk 0:00:10.6]} 43... Rb4+ {[%clk 0:00:37.2]} 44. Ke5 {[%clk 0:00:12.4]}
44... Rxa4 {[%clk 0:00:38.4]} 45. Kxe6 {[%clk 0:00:13.6]} 45... Ra3 {[%clk
0:00:39.9]} 46. Rb7 {[%clk 0:00:13.8]} 46... Rxg3 {[%clk 0:00:39.3]} 47. Rxa7
{[%clk 0:00:15]} 47... Rxh3 {[%clk 0:00:40.6]} 48. Kf5 {[%clk 0:00:15.9]} 48...
Rg3 {[%clk 0:00:40.8]} 49. Rb7 {[%clk 0:00:15.8]} 49... Rg6 {[%clk 0:00:40.4]}
50. Rb8 {[%clk 0:00:16.8]} 50... h5 {[%clk 0:00:41.1]} 51. Ra8 {[%clk
0:00:18.2]} 51... h4 {[%clk 0:00:35.9]} 52. Ra4 {[%clk 0:00:16.8]} 52... h3
{[%clk 0:00:37.3]} 53. Ra2 {[%clk 0:00:13.8]} 53... Rh6 {[%clk 0:00:37.1]} 54.
Rh2 {[%clk 0:00:14]} 54... b5 {[%clk 0:00:38.5]} 55. Kg4 {[%clk 0:00:12.7]}
55... b4 {[%clk 0:00:38.9]} 56. Kg3 {[%clk 0:00:13.7]} 56... b3 {[%clk
0:00:39.4]} 57. Rh1 {[%clk 0:00:12.4]} 57... h2 {[%clk 0:00:40]} 58. Kg2 {[%clk
0:00:13.3]} 58... b2 {[%clk 0:00:40]} 59. Kg3 {[%clk 0:00:12.1]} 0-1

[Event "*** Titled Tuesday 3|2 Blitz"]
[Site "Chess.com"]
[Date "2016.08.02"]
[Round "2"]
[White "MaestroASK"]
[Black "TyIerDurden"]
[Result "0-1"]
[WhiteElo "2481"]
[BlackElo "2468"]
[TimeControl "180+2"]
[EndTime "11:25:31 PDT"]
[Termination "TyIerDurden won on time"]

1. g3 {[%clk 0:03:01]} 1... Nf6 {[%clk 0:03:00.4]} 2. Bg2 {[%clk 0:03:00.9]}
2... d6 {[%clk 0:03:00.6]} 3. d3 {[%clk 0:03:01.7]} 3... g6 {[%clk 0:03:02.5]}
4. e4 {[%clk 0:03:02.6]} 4... Bg7 {[%clk 0:03:04.1]} 5. c3 {[%clk 0:03:02.7]}
5... O-O {[%clk 0:03:05.2]} 6. Nh3 {[%clk 0:03:03.2]} 6... c6 {[%clk 0:03:07.1]}
7. f4 {[%clk 0:03:03.4]} 7... Nbd7 {[%clk 0:03:07.9]} 8. O-O {[%clk 0:03:03.7]}
8... e5 {[%clk 0:03:09]} 9. f5 {[%clk 0:03:04.2]} 9... Qb6+ {[%clk 0:03:05.7]}
10. Kh1 {[%clk 0:03:02.2]} 10... d5 {[%clk 0:03:06.8]} 11. g4 {[%clk 0:03:02.5]}
11... dxe4 {[%clk 0:02:59.1]} 12. g5 {[%clk 0:03:02.7]} 12... gxf5 {[%clk
0:03:01]} 13. gxf6 {[%clk 0:03:00.1]} 13... Nxf6 {[%clk 0:03:02.8]} 14. dxe4
{[%clk 0:02:55.8]} 14... f4 {[%clk 0:03:03.7]} 15. Nf2 {[%clk 0:02:52.4]} 15...
Be6 {[%clk 0:03:02.7]} 16. Qf3 {[%clk 0:02:50.8]} 16... Kh8 {[%clk 0:02:59.8]}
17. Bh3 {[%clk 0:02:51.1]} 17... Rad8 {[%clk 0:02:58.3]} 18. Bxe6 {[%clk
0:02:48.5]} 18... fxe6 {[%clk 0:03:00.2]} 19. Nd2 {[%clk 0:02:47.9]} 19... Qe3
{[%clk 0:02:40.9]} 20. Nd1 {[%clk 0:02:43.9]} 20... Qb6 {[%clk 0:02:19]} 21. Re1
{[%clk 0:02:31.4]} 21... Rf7 {[%clk 0:02:13.6]} 22. Nf2 {[%clk 0:02:30.1]} 22...
Rfd7 {[%clk 0:02:09.1]} 23. Nb3 {[%clk 0:02:22.3]} 23... a5 {[%clk 0:02:05.9]}
24. Rb1 {[%clk 0:02:18.7]} 24... a4 {[%clk 0:02:01.9]} 25. Na1 {[%clk
0:02:18.7]} 25... Qb5 {[%clk 0:01:56.3]} 26. Nc2 {[%clk 0:02:13.5]} 26... Bh6
{[%clk 0:01:53.3]} 27. Na3 {[%clk 0:02:10.3]} 27... Qb6 {[%clk 0:01:53]} 28. b3
{[%clk 0:02:05.1]} 28... axb3 {[%clk 0:01:50]} 29. axb3 {[%clk 0:02:01.9]} 29...
Qc7 {[%clk 0:01:35.4]} 30. Nc4 {[%clk 0:01:58.1]} 30... b5 {[%clk 0:01:33.1]}
31. Nb2 {[%clk 0:01:58.5]} 31... c5 {[%clk 0:01:24.3]} 32. c4 {[%clk 0:01:38]}
32... Bg5 {[%clk 0:00:44.2]} 33. Nbd3 {[%clk 0:01:15.4]} 33... bxc4 {[%clk
0:00:43.3]} 34. bxc4 {[%clk 0:01:15.8]} 34... Bh4 {[%clk 0:00:43.8]} 35. Qh3
{[%clk 0:01:12.9]} 35... Bxf2 {[%clk 0:00:41.5]} 36. Nxf2 {[%clk 0:01:12.6]}
36... Rg8 {[%clk 0:00:43.4]} 37. Bb2 {[%clk 0:01:03.6]} 37... Rd2 {[%clk
0:00:35.2]} 38. Rf1 {[%clk 0:00:51.3]} 38... Qd6 {[%clk 0:00:32.5]} 39. Rbd1
{[%clk 0:00:49]} 39... Rxd1 {[%clk 0:00:30.4]} 40. Nxd1 {[%clk 0:00:42.8]} 40...
Nxe4 {[%clk 0:00:31]} 41. Qf3 {[%clk 0:00:35.4]} 41... Nd2 {[%clk 0:00:22.6]}
42. Qxf4 {[%clk 0:00:23.9]} 42... Qc6+ {[%clk 0:00:06.3]} 43. Rf3 {[%clk
0:00:24.7]} 43... Qxf3+ {[%clk 0:00:07]} 44. Qxf3 {[%clk 0:00:25.3]} 44... Nxf3
{[%clk 0:00:07.2]} 45. Bxe5+ {[%clk 0:00:26.3]} 45... Nxe5 {[%clk 0:00:06.9]}
46. Ne3 {[%clk 0:00:27]} 46... Rd8 {[%clk 0:00:07.3]} 47. Kg2 {[%clk 0:00:27.1]}
47... Rd3 {[%clk 0:00:08.4]} 48. Kf2 {[%clk 0:00:27.8]} 48... Rxe3 {[%clk
0:00:09.1]} 49. Kxe3 {[%clk 0:00:28.7]} 49... Nxc4+ {[%clk 0:00:11]} 50. Ke4
{[%clk 0:00:29.5]} 50... Nb6 {[%clk 0:00:12.1]} 51. Ke5 {[%clk 0:00:30.6]} 51...
c4 {[%clk 0:00:14]} 52. Kxe6 {[%clk 0:00:31.6]} 52... c3 {[%clk 0:00:15]} 0-1